[Event "Late-Titled-Tuesday-Blitz-April-23-2024"]
[Site "Chess.com"]
[Date "2024.04.23"]
[Round "4"]
[White "Nemsko"]
[Black "samolo"]
[Result "0-1"]
[WhiteElo "2457"]
[BlackElo "2667"]
[TimeControl "180+1"]
[EndTime "14:40:25 PDT"]
[Termination "samolo won by resignation"]

1. e4 {[%clk 0:03:00.9]} 1... g6 {[%clk 0:02:55.8]} 2. d4 {[%clk 0:02:59.2]}
2... Bg7 {[%clk 0:02:56.2]} 3. Be3 {[%clk 0:02:57.4]} 3... d6 {[%clk 0:02:56.4]}
4. Nc3 {[%clk 0:02:57.1]} 4... a6 {[%clk 0:02:56]} 5. Qd2 {[%clk 0:02:57.2]}
5... b5 {[%clk 0:02:56.5]} 6. O-O-O {[%clk 0:02:57.5]} 6... Bb7 {[%clk
0:02:56.9]} 7. f3 {[%clk 0:02:57.5]} 7... Nd7 {[%clk 0:02:57.3]} 8. Kb1 {[%clk
0:02:57.6]} 8... Rc8 {[%clk 0:02:57.8]} 9. g4 {[%clk 0:02:58]} 9... e6 {[%clk
0:02:54.9]} 10. h4 {[%clk 0:02:57.7]} 10... h5 {[%clk 0:02:55]} 11. Bg5 {[%clk
0:02:48.6]} 11... Bf6 {[%clk 0:02:42.6]} 12. Bg2 {[%clk 0:02:36.4]} 12... hxg4
{[%clk 0:02:34.2]} 13. fxg4 {[%clk 0:02:37.3]} 13... Bxg5 {[%clk 0:02:34.3]} 14.
hxg5 {[%clk 0:02:38.2]} 14... Rxh1 {[%clk 0:02:33.9]} 15. Bxh1 {[%clk
0:02:39.1]} 15... c5 {[%clk 0:02:33.3]} 16. Nge2 {[%clk 0:02:17.2]} 16... cxd4
{[%clk 0:02:32.1]} 17. Nxd4 {[%clk 0:02:10.4]} 17... Ne5 {[%clk 0:02:31.7]} 18.
Qf4 {[%clk 0:01:56.5]} 18... Qb6 {[%clk 0:02:19.2]} 19. Nf3 {[%clk 0:01:46.8]}
19... b4 {[%clk 0:02:03.7]} 20. Ne2 {[%clk 0:01:08.6]} 20... Qf2 {[%clk
0:01:53.2]} 21. Nxe5 {[%clk 0:00:48.9]} 21... Qxf4 {[%clk 0:01:52.8]} 22. Nxf4
{[%clk 0:00:49.8]} 22... dxe5 {[%clk 0:01:53.2]} 23. Nd3 {[%clk 0:00:48.8]}
23... a5 {[%clk 0:01:46.7]} 24. Nxe5 {[%clk 0:00:47.5]} 24... Rc5 {[%clk
0:01:47.3]} 25. Nxf7 {[%clk 0:00:37.6]} 25... Kxf7 {[%clk 0:01:44.4]} 26. Rd7+
{[%clk 0:00:38.2]} 26... Ne7 {[%clk 0:01:44.5]} 27. Rxb7 {[%clk 0:00:38.6]}
27... Rxg5 {[%clk 0:01:44.9]} 28. Bf3 {[%clk 0:00:38]} 28... Kf6 {[%clk
0:01:42.3]} 29. Kc1 {[%clk 0:00:34.4]} 29... Nc6 {[%clk 0:01:37.6]} 30. Rb6
{[%clk 0:00:19.4]} 30... Rc5 {[%clk 0:01:33.2]} 31. Kd2 {[%clk 0:00:11.3]} 31...
Nd4 {[%clk 0:01:27.8]} 32. Bd1 {[%clk 0:00:11.8]} 32... Ke5 {[%clk 0:01:28.4]}
33. c3 {[%clk 0:00:12.3]} 33... bxc3+ {[%clk 0:01:27.1]} 34. bxc3 {[%clk
0:00:13.2]} 34... Nc6 {[%clk 0:01:27.1]} 35. Bc2 {[%clk 0:00:13.8]} 35... Kf4
{[%clk 0:01:23.9]} 36. g5 {[%clk 0:00:05.9]} 36... Kxg5 {[%clk 0:01:21.3]} 37.
a4 {[%clk 0:00:06.3]} 37... Kf6 {[%clk 0:01:19.7]} 38. Rb5 {[%clk 0:00:06.6]}
38... Rxb5 {[%clk 0:01:14]} 39. axb5 {[%clk 0:00:07.5]} 39... Nb8 {[%clk
0:01:14.8]} 40. c4 {[%clk 0:00:05.1]} 40... Ke5 {[%clk 0:01:15.3]} 41. c5 {[%clk
0:00:05.4]} 41... g5 {[%clk 0:01:14.6]} 42. Ke3 {[%clk 0:00:02.9]} 42... Nd7
{[%clk 0:01:13.2]} 43. c6 {[%clk 0:00:02.8]} 43... Nb6 {[%clk 0:01:13.9]} 44.
Bb3 {[%clk 0:00:03.2]} 44... a4 {[%clk 0:01:12.4]} 45. Ba2 {[%clk 0:00:02.7]}
45... a3 {[%clk 0:01:12.6]} 46. Kf3 {[%clk 0:00:02.4]} 46... Nc8 {[%clk
0:01:03.9]} 47. Kg4 {[%clk 0:00:02.8]} 47... Kxe4 {[%clk 0:01:04.5]} 48. Bxe6
{[%clk 0:00:02.6]} 48... Nd6 {[%clk 0:01:03.7]} 49. Ba2 {[%clk 0:00:03]} 49...
Nxb5 {[%clk 0:01:03.9]} 50. Kxg5 {[%clk 0:00:03.6]} 50... Ke5 {[%clk 0:01:02.2]}
51. Kg4 {[%clk 0:00:03.4]} 51... Kd6 {[%clk 0:01:02.7]} 52. Kf3 {[%clk
0:00:04.1]} 52... Nc3 {[%clk 0:01:03.3]} 53. Ke3 {[%clk 0:00:05]} 53... Nxa2
{[%clk 0:01:03.2]} 54. Kd2 {[%clk 0:00:05.5]} 54... Nb4 {[%clk 0:01:03.8]} 55.
Kc1 {[%clk 0:00:05.6]} 55... Kxc6 {[%clk 0:01:04]} 56. Kb1 {[%clk 0:00:06.5]}
56... Kc5 {[%clk 0:01:04.6]} 57. Ka1 {[%clk 0:00:07.4]} 57... Kc4 {[%clk
0:01:05.2]} 58. Kb1 {[%clk 0:00:07.7]} 58... Kb3 {[%clk 0:01:05.8]} 59. Ka1
{[%clk 0:00:08.6]} 59... Nc2+ {[%clk 0:01:06.2]} 60. Kb1 {[%clk 0:00:09]} 60...
a2+ {[%clk 0:01:06.9]} 61. Kc1 {[%clk 0:00:09.4]} 61... a1=Q+ {[%clk 0:01:07.8]}
62. Kd2 {[%clk 0:00:10.3]} 0-1

[Event "Late-Titled-Tuesday-Blitz-April-23-2024"]
[Site "Chess.com"]
[Date "2024.04.23"]
[Round "4"]
[White "TheBigBoss04"]
[Black "Mindhunter08"]
[Result "1-0"]
[WhiteElo "2796"]
[BlackElo "2588"]
[TimeControl "180+1"]
[EndTime "14:40:26 PDT"]
[Termination "TheBigBoss04 won by resignation"]

1. e4 {[%clk 0:03:00.9]} 1... e5 {[%clk 0:02:59.8]} 2. Nf3 {[%clk 0:02:57.3]}
2... Nc6 {[%clk 0:02:59.7]} 3. Bb5 {[%clk 0:02:53.6]} 3... a6 {[%clk 0:02:58.8]}
4. Ba4 {[%clk 0:02:49.3]} 4... Nf6 {[%clk 0:02:59.3]} 5. d3 {[%clk 0:02:48.8]}
5... b5 {[%clk 0:02:33.4]} 6. Bb3 {[%clk 0:02:46.2]} 6... Be7 {[%clk 0:02:30.8]}
7. Nc3 {[%clk 0:02:41.6]} 7... d6 {[%clk 0:02:25.5]} 8. a4 {[%clk 0:02:37]} 8...
b4 {[%clk 0:02:24.1]} 9. Nd5 {[%clk 0:02:36]} 9... Rb8 {[%clk 0:02:19.5]} 10. a5
{[%clk 0:02:33]} 10... O-O {[%clk 0:02:17.5]} 11. Bd2 {[%clk 0:02:07.6]} 11...
Bg4 {[%clk 0:02:10.3]} 12. Bc4 {[%clk 0:01:41]} 12... Nd4 {[%clk 0:02:06.5]} 13.
Bxa6 {[%clk 0:01:30.9]} 13... Nxd5 {[%clk 0:02:03.4]} 14. exd5 {[%clk
0:01:30.3]} 14... Qd7 {[%clk 0:01:55.5]} 15. Be3 {[%clk 0:01:24.1]} 15... Bxf3
{[%clk 0:01:42.5]} 16. gxf3 {[%clk 0:01:23.6]} 16... Qf5 {[%clk 0:01:30.4]} 17.
Bxd4 {[%clk 0:01:20.4]} 17... exd4 {[%clk 0:01:31.3]} 18. Bc4 {[%clk 0:01:13.9]}
18... Bg5 {[%clk 0:00:59.3]} 19. h4 {[%clk 0:01:08.2]} 19... Bf4 {[%clk
0:00:53.5]} 20. a6 {[%clk 0:01:01.1]} 20... Rfe8+ {[%clk 0:00:51.1]} 21. Kf1
{[%clk 0:01:00.8]} 21... Rb6 {[%clk 0:00:13.8]} 22. a7 {[%clk 0:00:46.6]} 22...
Ra8 {[%clk 0:00:13.5]} 23. Qe2 {[%clk 0:00:44.8]} 23... Rb7 {[%clk 0:00:12.7]}
24. Qe7 {[%clk 0:00:33.3]} 24... h6 {[%clk 0:00:12.3]} 25. h5 {[%clk 0:00:25.9]}
25... Rbxa7 {[%clk 0:00:12.4]} 26. Rxa7 {[%clk 0:00:23.8]} 26... Rxa7 {[%clk
0:00:13.3]} 27. Kg2 {[%clk 0:00:18.3]} 27... Ra8 {[%clk 0:00:10.4]} 28. Bb3
{[%clk 0:00:15.3]} 28... Bg5 {[%clk 0:00:09.4]} 29. Qe4 {[%clk 0:00:14.9]} 29...
Qf6 {[%clk 0:00:07.8]} 30. Qg4 {[%clk 0:00:12]} 30... Bf4 {[%clk 0:00:07.7]} 31.
Re1 {[%clk 0:00:12.1]} 31... Be5 {[%clk 0:00:06.9]} 32. Re4 {[%clk 0:00:11.9]}
32... Ra1 {[%clk 0:00:05.6]} 33. f4 {[%clk 0:00:11.8]} 33... Qe7 {[%clk
0:00:02.4]} 34. fxe5 {[%clk 0:00:11.3]} 34... dxe5 {[%clk 0:00:03.3]} 35. Qf5
{[%clk 0:00:11.1]} 35... Qh4 {[%clk 0:00:02.9]} 36. Rxh4 {[%clk 0:00:10.7]} 1-0

[Event "Late-Titled-Tuesday-Blitz-April-23-2024"]
[Site "Chess.com"]
[Date "2024.04.23"]
[Round "4"]
[White "GoltsevDmitry2000"]
[Black "DominguezOnYoutube"]
[Result "1/2-1/2"]
[WhiteElo "2764"]
[BlackElo "2956"]
[TimeControl "180+1"]
[EndTime "14:40:30 PDT"]
[Termination "Game drawn by agreement"]

1. e4 {[%clk 0:02:59.9]} 1... c5 {[%clk 0:02:59.1]} 2. Nf3 {[%clk 0:03:00.2]}
2... d6 {[%clk 0:02:58.9]} 3. d4 {[%clk 0:03:00.8]} 3... cxd4 {[%clk 0:02:59.1]}
4. Nxd4 {[%clk 0:03:01.7]} 4... Nf6 {[%clk 0:02:59.2]} 5. Nc3 {[%clk 0:03:02.2]}
5... a6 {[%clk 0:02:59.8]} 6. Be2 {[%clk 0:03:02.6]} 6... e5 {[%clk 0:02:59.6]}
7. Nf5 {[%clk 0:03:02.6]} 7... d5 {[%clk 0:02:58]} 8. Bg5 {[%clk 0:03:01.1]}
8... d4 {[%clk 0:02:50.9]} 9. Bxf6 {[%clk 0:03:01.1]} 9... Qxf6 {[%clk
0:02:31.1]} 10. Nd5 {[%clk 0:02:58.8]} 10... Qd8 {[%clk 0:02:31.6]} 11. Bf3
{[%clk 0:02:52.4]} 11... g6 {[%clk 0:02:27.9]} 12. Ng3 {[%clk 0:02:51]} 12...
Nc6 {[%clk 0:02:18.7]} 13. O-O {[%clk 0:02:50.5]} 13... Bg7 {[%clk 0:02:09.7]}
14. c3 {[%clk 0:02:45.9]} 14... O-O {[%clk 0:02:08.7]} 15. Qb3 {[%clk
0:02:26.1]} 15... Rb8 {[%clk 0:01:58.6]} 16. Rfd1 {[%clk 0:02:19]} 16... Be6
{[%clk 0:01:57.8]} 17. Rac1 {[%clk 0:02:06.3]} 17... b5 {[%clk 0:01:56.8]} 18.
Qa3 {[%clk 0:02:02.8]} 18... Bh6 {[%clk 0:01:30.4]} 19. Rc2 {[%clk 0:01:55]}
19... a5 {[%clk 0:01:29.9]} 20. Qc5 {[%clk 0:01:51.6]} 20... Bd7 {[%clk
0:01:21.9]} 21. Qd6 {[%clk 0:01:47.5]} 21... Bg7 {[%clk 0:01:17.1]} 22. Ne2
{[%clk 0:01:27.2]} 22... Re8 {[%clk 0:01:16.7]} 23. cxd4 {[%clk 0:01:23]} 23...
Nxd4 {[%clk 0:01:04.7]} 24. Nxd4 {[%clk 0:01:22.7]} 24... exd4 {[%clk
0:01:05.6]} 25. Rc7 {[%clk 0:00:46.4]} 25... Be6 {[%clk 0:01:04.5]} 26. Qc5
{[%clk 0:00:42.6]} 26... Bxd5 {[%clk 0:00:46.5]} 27. exd5 {[%clk 0:00:42]} 27...
Be5 {[%clk 0:00:45.9]} 28. Rc6 {[%clk 0:00:39.1]} 28... Rc8 {[%clk 0:00:36.9]}
29. d6 {[%clk 0:00:27.5]} 29... Rxc6 {[%clk 0:00:29.5]} 30. Bxc6 {[%clk
0:00:27.8]} 30... Bxd6 {[%clk 0:00:29.6]} 31. Qxd4 {[%clk 0:00:28]} 31... Re6
{[%clk 0:00:28.9]} 32. Bxb5 {[%clk 0:00:25.2]} 32... Qb8 {[%clk 0:00:28.1]} 33.
Bc4 {[%clk 0:00:22.3]} 33... Bxh2+ {[%clk 0:00:27.8]} 34. Kh1 {[%clk 0:00:21.8]}
34... Rd6 {[%clk 0:00:28.1]} 35. Qg4 {[%clk 0:00:19.9]} 35... Rxd1+ {[%clk
0:00:24.3]} 36. Qxd1 {[%clk 0:00:20.8]} 36... Qf4 {[%clk 0:00:24.3]} 37. Qd5
{[%clk 0:00:13.7]} 37... Kg7 {[%clk 0:00:20.1]} 38. Qxf7+ {[%clk 0:00:13.4]}
38... Qxf7 {[%clk 0:00:19.7]} 39. Bxf7 {[%clk 0:00:14.3]} 39... Be5 {[%clk
0:00:19.7]} 40. Bc4 {[%clk 0:00:14.7]} 40... Bxb2 {[%clk 0:00:19.7]} 41. g3
{[%clk 0:00:15]} 41... Bd4 {[%clk 0:00:19.6]} 42. Kg2 {[%clk 0:00:12.6]} 42...
g5 {[%clk 0:00:19.8]} 43. f4 {[%clk 0:00:12.6]} 43... gxf4 {[%clk 0:00:19.4]}
44. gxf4 {[%clk 0:00:13.5]} 44... Kf6 {[%clk 0:00:19.7]} 45. Kh3 {[%clk
0:00:13.6]} 45... Kf5 {[%clk 0:00:19.7]} 46. Bd3+ {[%clk 0:00:14.3]} 46... Kxf4
{[%clk 0:00:19.9]} 47. Bxh7 {[%clk 0:00:15]} 1/2-1/2

[Event "Late-Titled-Tuesday-Blitz-April-23-2024"]
[Site "Chess.com"]
[Date "2024.04.23"]
[Round "4"]
[White "SCIM"]
[Black "Hakiki_satranc"]
[Result "1-0"]
[WhiteElo "2555"]
[BlackElo "2391"]
[TimeControl "180+1"]
[EndTime "14:40:30 PDT"]
[Termination "SCIM won on time"]

1. e4 {[%clk 0:03:00.9]} 1... c5 {[%clk 0:02:59.6]} 2. Nf3 {[%clk 0:02:59.8]}
2... Nc6 {[%clk 0:03:00.1]} 3. d4 {[%clk 0:02:59.6]} 3... cxd4 {[%clk 0:03:01]}
4. Nxd4 {[%clk 0:03:00]} 4... Nf6 {[%clk 0:03:01.7]} 5. Nc3 {[%clk 0:02:59.4]}
5... e5 {[%clk 0:03:02.2]} 6. Ndb5 {[%clk 0:02:58.6]} 6... d6 {[%clk 0:03:02.4]}
7. a4 {[%clk 0:02:58.2]} 7... a6 {[%clk 0:03:00]} 8. Na3 {[%clk 0:02:58.7]} 8...
Be6 {[%clk 0:03:00.7]} 9. Bc4 {[%clk 0:02:57.1]} 9... Rc8 {[%clk 0:02:45.1]} 10.
O-O {[%clk 0:02:20.6]} 10... Be7 {[%clk 0:02:37.6]} 11. Be3 {[%clk 0:02:07.2]}
11... O-O {[%clk 0:01:56.3]} 12. Bxe6 {[%clk 0:01:51.7]} 12... fxe6 {[%clk
0:01:57.2]} 13. Nc4 {[%clk 0:01:51.8]} 13... Nd4 {[%clk 0:01:46.7]} 14. Qd3
{[%clk 0:01:51.1]} 14... b5 {[%clk 0:01:39.7]} 15. axb5 {[%clk 0:01:48.4]} 15...
axb5 {[%clk 0:01:40.6]} 16. Na5 {[%clk 0:01:44.6]} 16... Nxc2 {[%clk 0:01:33.7]}
17. Qxc2 {[%clk 0:01:41.4]} 17... b4 {[%clk 0:01:33.5]} 18. Qb3 {[%clk
0:01:35.6]} 18... bxc3 {[%clk 0:01:33.3]} 19. Qxe6+ {[%clk 0:01:34]} 19... Kh8
{[%clk 0:01:32.9]} 20. bxc3 {[%clk 0:01:34.6]} 20... Rxc3 {[%clk 0:01:28.4]} 21.
Nb7 {[%clk 0:01:19.4]} 21... Qc7 {[%clk 0:01:10.6]} 22. Ra7 {[%clk 0:01:16.9]}
22... Nxe4 {[%clk 0:00:57.3]} 23. Na5 {[%clk 0:01:01.3]} 23... Qc8 {[%clk
0:00:23.7]} 24. Qxe7 {[%clk 0:00:59.6]} 24... Rg8 {[%clk 0:00:14.9]} 25. h3
{[%clk 0:00:45.2]} 25... Rc2 {[%clk 0:00:08.3]} 26. Bh6 {[%clk 0:00:35.9]} 26...
Qf8 {[%clk 0:00:04.8]} 27. Qxf8 {[%clk 0:00:34.8]} 27... Rxf8 {[%clk 0:00:05.2]}
28. Bxg7+ {[%clk 0:00:35.5]} 28... Kg8 {[%clk 0:00:06.1]} 29. Bxf8 {[%clk
0:00:36.2]} 29... Kxf8 {[%clk 0:00:07]} 30. Rxh7 {[%clk 0:00:30.4]} 30... d5
{[%clk 0:00:06]} 31. Rh5 {[%clk 0:00:25.6]} 31... d4 {[%clk 0:00:03.5]} 32. Rxe5
{[%clk 0:00:25.2]} 32... Nc3 {[%clk 0:00:03.6]} 33. Rf5+ {[%clk 0:00:24.8]}
33... Kg7 {[%clk 0:00:02.9]} 34. Nb3 {[%clk 0:00:25.5]} 34... Ne2+ {[%clk
0:00:02.6]} 35. Kh2 {[%clk 0:00:24.3]} 35... d3 {[%clk 0:00:03.5]} 36. Rd5
{[%clk 0:00:23.4]} 36... Rc3 {[%clk 0:00:03.7]} 37. Nd4 {[%clk 0:00:21.1]} 37...
Nf4 {[%clk 0:00:01.7]} 38. Rd7+ {[%clk 0:00:22]} 38... Kf6 {[%clk 0:00:01.7]}
39. Rd1 {[%clk 0:00:20]} 1-0

[Event "Late-Titled-Tuesday-Blitz-April-23-2024"]
[Site "Chess.com"]
[Date "2024.04.23"]
[Round "4"]
[White "DonJuanEGenaro"]
[Black "Iuckyducky"]
[Result "1-0"]
[WhiteElo "2038"]
[BlackElo "2245"]
[TimeControl "180+1"]
[EndTime "14:40:31 PDT"]
[Termination "DonJuanEGenaro won on time"]

1. Nf3 {[%clk 0:02:59]} 1... Nf6 {[%clk 0:02:59.5]} 2. g3 {[%clk 0:02:58.8]}
2... d5 {[%clk 0:03:00]} 3. Bg2 {[%clk 0:02:58.8]} 3... c5 {[%clk 0:03:00.5]} 4.
O-O {[%clk 0:02:58.5]} 4... Nc6 {[%clk 0:03:01.1]} 5. d4 {[%clk 0:02:58.3]} 5...
e6 {[%clk 0:03:00.9]} 6. c4 {[%clk 0:02:56.9]} 6... Be7 {[%clk 0:02:53.4]} 7.
cxd5 {[%clk 0:02:47.7]} 7... exd5 {[%clk 0:02:20.2]} 8. Nc3 {[%clk 0:02:43.3]}
8... O-O {[%clk 0:02:11.2]} 9. Bg5 {[%clk 0:02:40.6]} 9... cxd4 {[%clk
0:02:06.3]} 10. Nxd4 {[%clk 0:02:39.1]} 10... h6 {[%clk 0:02:06.5]} 11. Bf4
{[%clk 0:02:29.7]} 11... a6 {[%clk 0:02:00.8]} 12. Rc1 {[%clk 0:02:23.6]} 12...
Be6 {[%clk 0:01:36.4]} 13. Nxe6 {[%clk 0:02:16.4]} 13... fxe6 {[%clk 0:01:37.3]}
14. Bh3 {[%clk 0:02:15.8]} 14... e5 {[%clk 0:01:19.9]} 15. Bd2 {[%clk
0:02:03.3]} 15... d4 {[%clk 0:01:18.7]} 16. Nb1 {[%clk 0:01:56.6]} 16... Qd5
{[%clk 0:00:31.6]} 17. b3 {[%clk 0:01:31.2]} 17... Kh8 {[%clk 0:00:25]} 18. Bg2
{[%clk 0:01:29.6]} 18... Qe6 {[%clk 0:00:23.9]} 19. e4 {[%clk 0:01:24.3]} 19...
Rad8 {[%clk 0:00:16.5]} 20. Rc4 {[%clk 0:01:16.9]} 20... b5 {[%clk 0:00:14.8]}
21. Rc1 {[%clk 0:01:14.2]} 21... Ba3 {[%clk 0:00:14.7]} 22. Nxa3 {[%clk
0:01:12.1]} 22... Qe7 {[%clk 0:00:10.3]} 23. Rxc6 {[%clk 0:01:07.1]} 23... Qxa3
{[%clk 0:00:09.6]} 24. Qc2 {[%clk 0:01:01]} 24... d3 {[%clk 0:00:09.7]} 25. Qc3
{[%clk 0:00:57.1]} 25... Qxa2 {[%clk 0:00:04.4]} 26. Ra1 {[%clk 0:00:51.9]}
26... Qc2 {[%clk 0:00:04.9]} 27. Qxc2 {[%clk 0:00:50]} 27... dxc2 {[%clk
0:00:05.8]} 28. Rxc2 {[%clk 0:00:49.5]} 28... Ng4 {[%clk 0:00:06.7]} 29. f3
{[%clk 0:00:46]} 29... Nf6 {[%clk 0:00:03.6]} 30. Rxa6 {[%clk 0:00:45.3]} 30...
Rd3 {[%clk 0:00:03.7]} 31. Bf1 {[%clk 0:00:41.2]} 31... Rxb3 {[%clk 0:00:03.2]}
32. Be2 {[%clk 0:00:40.5]} 32... Rd8 {[%clk 0:00:01.5]} 33. Re6 {[%clk
0:00:36.4]} 33... Rb1+ {[%clk 0:00:01.8]} 34. Kf2 {[%clk 0:00:35.3]} 34... b4
{[%clk 0:00:02.7]} 35. Rxe5 {[%clk 0:00:34.6]} 35... b3 {[%clk 0:00:03.2]} 36.
Rc7 {[%clk 0:00:33.9]} 36... Rf8 {[%clk 0:00:03.2]} 37. Ree7 {[%clk 0:00:32.8]}
37... Nh5 {[%clk 0:00:01.5]} 38. f4 {[%clk 0:00:30.1]} 38... b2 {[%clk 0:00:02]}
39. Rb7 {[%clk 0:00:23.8]} 39... Rh1 {[%clk 0:00:02.5]} 40. Bxh5 {[%clk
0:00:22.1]} 40... Rxh2+ {[%clk 0:00:02.4]} 41. Ke3 {[%clk 0:00:22]} 41... Rxh5
{[%clk 0:00:02.1]} 42. Rxg7 {[%clk 0:00:20]} 1-0

[Event "Late-Titled-Tuesday-Blitz-April-23-2024"]
[Site "Chess.com"]
[Date "2024.04.23"]
[Round "4"]
[White "Rytenko_V"]
[Black "crosky"]
[Result "1-0"]
[WhiteElo "2523"]
[BlackElo "2352"]
[TimeControl "180+1"]
[EndTime "14:40:33 PDT"]
[Termination "Rytenko_V won on time"]

1. e4 {[%clk 0:02:59.7]} 1... c5 {[%clk 0:03:00.6]} 2. Nf3 {[%clk 0:02:59.5]}
2... e6 {[%clk 0:03:01.1]} 3. d4 {[%clk 0:02:59.9]} 3... cxd4 {[%clk 0:03:02]}
4. Nxd4 {[%clk 0:03:00.6]} 4... a6 {[%clk 0:03:02.6]} 5. Nc3 {[%clk 0:03:00.2]}
5... b5 {[%clk 0:03:02.6]} 6. Bd3 {[%clk 0:02:58.7]} 6... Bb7 {[%clk 0:03:02.5]}
7. O-O {[%clk 0:02:58.5]} 7... Nc6 {[%clk 0:03:03.2]} 8. Nxc6 {[%clk 0:02:57.9]}
8... Bxc6 {[%clk 0:03:04.1]} 9. a3 {[%clk 0:02:55.8]} 9... Ne7 {[%clk
0:02:57.1]} 10. Qe2 {[%clk 0:02:52.5]} 10... d6 {[%clk 0:02:36.5]} 11. b3 {[%clk
0:02:46.6]} 11... Ng6 {[%clk 0:02:18.2]} 12. f4 {[%clk 0:02:39.6]} 12... Be7
{[%clk 0:02:17.1]} 13. Bb2 {[%clk 0:02:34.8]} 13... O-O {[%clk 0:02:16.2]} 14.
Rad1 {[%clk 0:02:32.8]} 14... Qb6+ {[%clk 0:02:07.8]} 15. Kh1 {[%clk 0:02:32.6]}
15... Bf6 {[%clk 0:01:57.9]} 16. e5 {[%clk 0:01:53.4]} 16... dxe5 {[%clk
0:01:45.7]} 17. Bxg6 {[%clk 0:01:53]} 17... hxg6 {[%clk 0:01:36.1]} 18. fxe5
{[%clk 0:01:44.7]} 18... Bg5 {[%clk 0:01:30.1]} 19. Ne4 {[%clk 0:01:42.8]} 19...
Bxe4 {[%clk 0:01:27.7]} 20. Qxe4 {[%clk 0:01:43.7]} 20... Rad8 {[%clk
0:01:18.3]} 21. Bd4 {[%clk 0:01:14.9]} 21... Qa5 {[%clk 0:01:02.8]} 22. Bc5
{[%clk 0:01:12.2]} 22... Rxd1 {[%clk 0:00:57.9]} 23. Rxd1 {[%clk 0:01:13.1]}
23... Rd8 {[%clk 0:00:58.3]} 24. Rd6 {[%clk 0:00:55]} 24... Be7 {[%clk
0:00:34.4]} 25. Bb4 {[%clk 0:00:33.4]} 25... Qc7 {[%clk 0:00:25]} 26. Rxd8+
{[%clk 0:00:30]} 26... Bxd8 {[%clk 0:00:17.2]} 27. h3 {[%clk 0:00:21.8]} 27...
Kh7 {[%clk 0:00:16.1]} 28. c4 {[%clk 0:00:20.4]} 28... Qd7 {[%clk 0:00:08.4]}
29. Bd6 {[%clk 0:00:18.2]} 29... Bb6 {[%clk 0:00:08]} 30. c5 {[%clk 0:00:17.4]}
30... Bc7 {[%clk 0:00:05.5]} 31. c6 {[%clk 0:00:17.7]} 31... Qd8 {[%clk
0:00:04.7]} 32. Qd4 {[%clk 0:00:17]} 32... Bb6 {[%clk 0:00:03.3]} 33. Qc3 {[%clk
0:00:14.2]} 33... Qg5 {[%clk 0:00:03.4]} 34. c7 {[%clk 0:00:11.4]} 34... Qf4
{[%clk 0:00:02.5]} 35. Qd3 {[%clk 0:00:06.9]} 35... Qf2 {[%clk 0:00:02.2]} 36.
Qd1 {[%clk 0:00:06]} 1-0

[Event "Late-Titled-Tuesday-Blitz-April-23-2024"]
[Site "Chess.com"]
[Date "2024.04.23"]
[Round "4"]
[White "ellatambien"]
[Black "english_player_89"]
[Result "1-0"]
[WhiteElo "2712"]
[BlackElo "2537"]
[TimeControl "180+1"]
[EndTime "14:40:34 PDT"]
[Termination "ellatambien won by resignation"]

1. e4 {[%clk 0:03:00.9]} 1... e5 {[%clk 0:02:53.5]} 2. Nf3 {[%clk 0:02:59.1]}
2... Nc6 {[%clk 0:02:54]} 3. Bb5 {[%clk 0:02:59]} 3... a6 {[%clk 0:02:54]} 4.
Ba4 {[%clk 0:02:59.1]} 4... Nf6 {[%clk 0:02:53.9]} 5. O-O {[%clk 0:02:59.5]}
5... Be7 {[%clk 0:02:52.4]} 6. Re1 {[%clk 0:02:56.4]} 6... b5 {[%clk 0:02:53]}
7. Bb3 {[%clk 0:02:56.7]} 7... d6 {[%clk 0:02:53.7]} 8. c3 {[%clk 0:02:56.2]}
8... O-O {[%clk 0:02:53.8]} 9. d3 {[%clk 0:02:56.6]} 9... Nb8 {[%clk 0:02:53.3]}
10. Nbd2 {[%clk 0:02:53]} 10... Nbd7 {[%clk 0:02:53.9]} 11. Nf1 {[%clk
0:02:53.3]} 11... Bb7 {[%clk 0:02:54.6]} 12. Ng3 {[%clk 0:02:53.1]} 12... Nc5
{[%clk 0:02:53.7]} 13. Bc2 {[%clk 0:02:49.5]} 13... Ne6 {[%clk 0:02:41.3]} 14.
Nf5 {[%clk 0:02:40.6]} 14... Re8 {[%clk 0:02:38.1]} 15. a4 {[%clk 0:02:30.5]}
15... Bf8 {[%clk 0:02:36.2]} 16. Bg5 {[%clk 0:02:19.4]} 16... Nxg5 {[%clk
0:02:34.3]} 17. Nxg5 {[%clk 0:02:17.5]} 17... h6 {[%clk 0:02:34.2]} 18. Nf3
{[%clk 0:02:12.5]} 18... g6 {[%clk 0:02:33.8]} 19. Ne3 {[%clk 0:02:08.4]} 19...
Bg7 {[%clk 0:02:31.7]} 20. Bb3 {[%clk 0:02:06.2]} 20... d5 {[%clk 0:02:29.3]}
21. Nxd5 {[%clk 0:01:56.1]} 21... Nxd5 {[%clk 0:02:28.2]} 22. Bxd5 {[%clk
0:01:57]} 22... Bxd5 {[%clk 0:02:27.9]} 23. exd5 {[%clk 0:01:57.7]} 23... Qxd5
{[%clk 0:02:27.2]} 24. Re3 {[%clk 0:01:45]} 24... Rad8 {[%clk 0:02:16.1]} 25.
axb5 {[%clk 0:01:42.2]} 25... axb5 {[%clk 0:02:17]} 26. Qe2 {[%clk 0:01:41.4]}
26... c6 {[%clk 0:01:47.8]} 27. d4 {[%clk 0:01:36.9]} 27... e4 {[%clk
0:01:46.7]} 28. Nd2 {[%clk 0:01:35.7]} 28... f5 {[%clk 0:01:45.8]} 29. f3 {[%clk
0:01:36.3]} 29... Bxd4 {[%clk 0:01:27.1]} 30. cxd4 {[%clk 0:01:32.9]} 30... Qxd4
{[%clk 0:01:27.6]} 31. Nb3 {[%clk 0:01:26.2]} 31... Qb4 {[%clk 0:00:51.5]} 32.
fxe4 {[%clk 0:01:22.9]} 32... f4 {[%clk 0:00:50.3]} 33. Rc3 {[%clk 0:01:19.3]}
33... Rxe4 {[%clk 0:00:48.7]} 34. Qf2 {[%clk 0:01:19.6]} 34... Rde8 {[%clk
0:00:44.3]} 35. Qc5 {[%clk 0:01:11.8]} 35... Re1+ {[%clk 0:00:41.4]} 36. Rxe1
{[%clk 0:01:11.1]} 36... Rxe1+ {[%clk 0:00:42.3]} 37. Kf2 {[%clk 0:01:11.4]}
37... Qe4 {[%clk 0:00:42.3]} 38. Nc1 {[%clk 0:00:58.7]} 38... Rd1 {[%clk
0:00:23.3]} 39. Qxc6 {[%clk 0:00:24.4]} 39... Qe1+ {[%clk 0:00:14.7]} 40. Kf3
{[%clk 0:00:21.8]} 40... Qf1+ {[%clk 0:00:09.5]} 41. Kg4 {[%clk 0:00:19.8]}
41... f3 {[%clk 0:00:03.2]} 42. Qxg6+ {[%clk 0:00:17.7]} 1-0